[Event "Titled Tuesday Blitz October 31 Early 2023"]
[White "Tarnowska, Aleksandra"]
[Black "Pinto, Daniel"]
[WhiteFideId "1180967"]
[BlackFideId "3303144"]
[WhiteElo "2144"]
[BlackElo "2467"]
[Result "1-0"]
[Round "2"]
[TimeControl "180+1"]
[Date "2023.10.31"]
[WhiteClock "0:00:09"]
[BlackClock "0:00:00"]
[Board "178"]

1. e4 {[%clk 0:02:54]}  e5 {[%clk 0:02:47]} 2. Nf3 {[%clk 0:02:46]}  Nc6 {[%clk 0:02:47]} 3. Bb5 {[%clk 0:02:41]}  Nf6 {[%clk 0:02:45]} 4. O-O {[%clk 0:02:41]}  Nxe4 {[%clk 0:02:45]} 5. Re1 {[%clk 0:02:38]}  Nd6 {[%clk 0:02:45]} 6. Nxe5 {[%clk 0:02:37]}  Nxe5 {[%clk 0:02:45]} 7. Rxe5+ {[%clk 0:02:26]}  Be7 {[%clk 0:02:45]} 8. Ba4 {[%clk 0:02:16]}  O-O {[%clk 0:02:44]} 9. d4 {[%clk 0:02:15]}  Bf6 {[%clk 0:02:44]} 10. Re1 {[%clk 0:02:03]}  Nf5 {[%clk 0:02:08]} 11. c3 {[%clk 0:01:44]}  d5 {[%clk 0:02:09]} 12. Nd2 {[%clk 0:01:41]}  c6 {[%clk 0:02:02]} 13. Nf1 {[%clk 0:01:41]}  Qd6 {[%clk 0:01:40]} 14. Bc2 {[%clk 0:01:37]}  Bd7 {[%clk 0:01:33]} 15. Ng3 {[%clk 0:01:26]}  Nxg3 {[%clk 0:01:27]} 16. hxg3 {[%clk 0:01:26]}  Rfe8 {[%clk 0:01:20]} 17. Bf4 {[%clk 0:01:22]}  Rxe1+ {[%clk 0:01:20]} 18. Qxe1 {[%clk 0:01:22]}  Qe6 {[%clk 0:01:21]} 19. Qd2 {[%clk 0:01:19]}  Re8 {[%clk 0:01:20]} 20. Qd3 {[%clk 0:01:16]}  g6 {[%clk 0:01:19]} 21. Kf1 {[%clk 0:01:04]}  a6 {[%clk 0:01:16]} 22. Bd2 {[%clk 0:01:02]}  c5 {[%clk 0:01:11]} 23. Re1 {[%clk 0:01:00]}  Qxe1+ {[%clk 0:00:54]} 24. Bxe1 {[%clk 0:00:58]}  Bb5 {[%clk 0:00:55]} 25. dxc5 {[%clk 0:00:49]}  Bxd3+ {[%clk 0:00:48]} 26. Bxd3 {[%clk 0:00:50]}  Rc8 {[%clk 0:00:32]} 27. b4 {[%clk 0:00:47]}  Bg5 {[%clk 0:00:18]} 28. f4 {[%clk 0:00:46]}  Bf6 {[%clk 0:00:18]} 29. g4 {[%clk 0:00:44]}  h6 {[%clk 0:00:18]} 30. g3 {[%clk 0:00:41]}  Kf8 {[%clk 0:00:15]} 31. Kf2 {[%clk 0:00:40]}  Ke7 {[%clk 0:00:12]} 32. Bd2 {[%clk 0:00:41]}  Rh8 {[%clk 0:00:11]} 33. a4 {[%clk 0:00:40]}  h5 {[%clk 0:00:10]} 34. g5 {[%clk 0:00:40]}  Bg7 {[%clk 0:00:11]} 35. Be2 {[%clk 0:00:36]}  h4 {[%clk 0:00:11]} 36. gxh4 {[%clk 0:00:36]}  Rxh4 {[%clk 0:00:10]} 37. Kg3 {[%clk 0:00:34]}  Rh8 {[%clk 0:00:08]} 38. Bf3 {[%clk 0:00:33]}  Rd8 {[%clk 0:00:08]} 39. Kg4 {[%clk 0:00:24]}  f6 {[%clk 0:00:08]} 40. gxf6+ {[%clk 0:00:23]}  Bxf6 {[%clk 0:00:09]} 41. f5 {[%clk 0:00:20]}  gxf5+ {[%clk 0:00:05]} 42. Kxf5 {[%clk 0:00:20]}  Rd7 {[%clk 0:00:05]} 43. Kg6 {[%clk 0:00:18]}  d4 {[%clk 0:00:05]} 44. c4 {[%clk 0:00:15]}  d3 {[%clk 0:00:03]} 45. Bd5 {[%clk 0:00:14]}  a5 {[%clk 0:00:02]} 46. b5 {[%clk 0:00:12]}  Rc7 {[%clk 0:00:02]} 47. Bxa5 {[%clk 0:00:12]}  Rxc5 {[%clk 0:00:02]} 48. Bb4 {[%clk 0:00:12]}  Kd6 {[%clk 0:00:02]} 49. Bxc5+ {[%clk 0:00:11]}  Kxc5 {[%clk 0:00:02]} 50. Kxf6 {[%clk 0:00:10]}  d2 {[%clk 0:00:01]} 51. Bf3 {[%clk 0:00:10]}  Kxc4 {[%clk 0:00:02]} 52. Bd1 {[%clk 0:00:09]}  Kc3 {[%clk 0:00:02]} 53. Ke7 {[%clk 0:00:09]}  Kb2 {[%clk 0:00:02]} 54. Kd7 {[%clk 0:00:09]}  Kc1 {[%clk 0:00:00]} 55. Bf3 {[%clk 0:00:09]} 1-0


[Site "https://www.chess.com"]

[Event "Titled Tuesday Blitz October 31 Early 2023"]
[White "Feliz Dotel, Dewar Bienvenido"]
[Black "Taboas Rodriguez, Daniel"]
[WhiteFideId "6402801"]
[BlackFideId "2208466"]
[WhiteElo "2135"]
[BlackElo "2460"]
[Result "0-1"]
[Round "2"]
[TimeControl "180+1"]
[Date "2023.10.31"]
[WhiteClock "0:00:11"]
[BlackClock "0:00:43"]
[Board "179"]

1. d4 {[%clk 0:02:59]}  Nf6 {[%clk 0:02:59]} 2. e3 {[%clk 0:02:59]}  d5 {[%clk 0:02:59]} 3. Nf3 {[%clk 0:02:59]}  Bg4 {[%clk 0:02:59]} 4. h3 {[%clk 0:02:59]}  Bh5 {[%clk 0:02:59]} 5. g4 {[%clk 0:03:00]}  Bg6 {[%clk 0:02:59]} 6. Ne5 {[%clk 0:03:00]}  Nbd7 {[%clk 0:02:58]} 7. h4 {[%clk 0:02:58]}  h6 {[%clk 0:02:30]} 8. Nxg6 {[%clk 0:02:57]}  fxg6 {[%clk 0:02:31]} 9. Bd3 {[%clk 0:02:55]}  Kf7 {[%clk 0:02:31]} 10. Qf3 {[%clk 0:02:29]}  e5 {[%clk 0:02:29]} 11. Bxg6+ {[%clk 0:02:18]}  Kxg6 {[%clk 0:02:26]} 12. dxe5 {[%clk 0:02:18]}  Nxe5 {[%clk 0:02:16]} 13. Qf5+ {[%clk 0:02:17]}  Kf7 {[%clk 0:02:16]} 14. Qxe5 {[%clk 0:02:17]}  Bd6 {[%clk 0:02:17]} 15. Qf5 {[%clk 0:02:10]}  Qc8 {[%clk 0:01:41]} 16. Qxc8 {[%clk 0:02:02]}  Raxc8 {[%clk 0:01:42]} 17. f3 {[%clk 0:01:58]}  Rhe8 {[%clk 0:01:41]} 18. Nc3 {[%clk 0:01:56]}  d4 {[%clk 0:01:40]} 19. Nd1 {[%clk 0:01:38]}  dxe3 {[%clk 0:01:32]} 20. Bxe3 {[%clk 0:01:34]}  Nd5 {[%clk 0:01:31]} 21. Kd2 {[%clk 0:01:01]}  Nxe3 {[%clk 0:01:31]} 22. Nxe3 {[%clk 0:01:02]}  Bf4 {[%clk 0:01:31]} 23. Rae1 {[%clk 0:00:53]}  Rcd8+ {[%clk 0:01:31]} 24. Kc3 {[%clk 0:00:53]}  Rxe3+ {[%clk 0:01:30]} 25. Rxe3 {[%clk 0:00:53]}  Bxe3 {[%clk 0:01:31]} 26. Kb3 {[%clk 0:00:52]}  Re8 {[%clk 0:01:25]} 27. Rf1 {[%clk 0:00:50]}  Bf4 {[%clk 0:01:22]} 28. Rd1 {[%clk 0:00:49]}  Re3+ {[%clk 0:01:22]} 29. c3 {[%clk 0:00:49]}  Rxf3 {[%clk 0:01:20]} 30. Rd7+ {[%clk 0:00:48]}  Kf8 {[%clk 0:01:20]} 31. g5 {[%clk 0:00:46]}  hxg5 {[%clk 0:01:20]} 32. hxg5 {[%clk 0:00:47]}  Rg3 {[%clk 0:01:18]} 33. Rd4 {[%clk 0:00:45]}  Bd6 {[%clk 0:01:16]} 34. Rd5 {[%clk 0:00:45]}  Ke7 {[%clk 0:01:15]} 35. Rf5 {[%clk 0:00:45]}  g6 {[%clk 0:01:14]} 36. Rb5 {[%clk 0:00:43]}  b6 {[%clk 0:01:14]} 37. Rd5 {[%clk 0:00:40]}  Ke6 {[%clk 0:01:13]} 38. Rd2 {[%clk 0:00:37]}  Rxg5 {[%clk 0:01:13]} 39. Re2+ {[%clk 0:00:38]}  Re5 {[%clk 0:01:13]} 40. Rg2 {[%clk 0:00:38]}  g5 {[%clk 0:01:14]} 41. a4 {[%clk 0:00:38]}  Kf5 {[%clk 0:01:10]} 42. Kc4 {[%clk 0:00:37]}  g4 {[%clk 0:01:09]} 43. b4 {[%clk 0:00:36]}  Re4+ {[%clk 0:01:06]} 44. Kd5 {[%clk 0:00:32]}  g3 {[%clk 0:01:05]} 45. c4 {[%clk 0:00:28]}  Bf4 {[%clk 0:00:45]} 46. a5 {[%clk 0:00:22]}  bxa5 {[%clk 0:00:44]} 47. bxa5 {[%clk 0:00:23]}  Re1 {[%clk 0:00:44]} 48. Kc6 {[%clk 0:00:22]}  Ra1 {[%clk 0:00:43]} 49. Kb5 {[%clk 0:00:21]}  Kg4 {[%clk 0:00:43]} 50. c5 {[%clk 0:00:21]}  Kf3 {[%clk 0:00:42]} 51. Rc2 {[%clk 0:00:20]}  g2 {[%clk 0:00:43]} 52. Rxg2 {[%clk 0:00:20]}  Kxg2 {[%clk 0:00:42]} 53. c6 {[%clk 0:00:15]}  Kf3 {[%clk 0:00:42]} 54. Ka6 {[%clk 0:00:15]}  Ke4 {[%clk 0:00:42]} 55. Kxa7 {[%clk 0:00:14]}  Rxa5+ {[%clk 0:00:42]} 56. Kb7 {[%clk 0:00:14]}  Rc5 {[%clk 0:00:42]} 57. Ka6 {[%clk 0:00:14]}  Rxc6+ {[%clk 0:00:42]} 58. Kb7 {[%clk 0:00:15]}  Rb6+ {[%clk 0:00:42]} 59. Ka7 {[%clk 0:00:15]}  Rb1 {[%clk 0:00:42]} 60. Ka6 {[%clk 0:00:11]}  c5 {[%clk 0:00:43]} 0-1


[Site "https://www.chess.com"]

[Event "Titled Tuesday Blitz October 31 Early 2023"]
[White "Deuterio010"]
[Black "dontcatchmeifyoucant"]
[WhiteElo "2452"]
[BlackElo "2132"]
[Result "1-0"]
[Round "2"]
[TimeControl "180+1"]
[Date "2023.10.31"]
[WhiteClock "0:00:17"]
[BlackClock "0:00:00"]
[Board "181"]

1. e4 {[%clk 0:03:00]}  c6 {[%clk 0:02:56]} 2. Nf3 {[%clk 0:03:00]}  d5 {[%clk 0:02:57]} 3. Nc3 {[%clk 0:03:00]}  dxe4 {[%clk 0:02:53]} 4. Nxe4 {[%clk 0:03:01]}  Nf6 {[%clk 0:02:53]} 5. Qe2 {[%clk 0:02:59]}  Nxe4 {[%clk 0:02:52]} 6. Qxe4 {[%clk 0:03:00]}  Qd5 {[%clk 0:02:53]} 7. Qh4 {[%clk 0:02:59]}  Qe6+ {[%clk 0:02:47]} 8. Be2 {[%clk 0:02:59]}  Qg6 {[%clk 0:02:47]} 9. O-O {[%clk 0:02:44]}  Qxc2 {[%clk 0:02:46]} 10. b3 {[%clk 0:02:33]}  e6 {[%clk 0:02:30]} 11. Nd4 {[%clk 0:02:23]}  Qg6 {[%clk 0:02:25]} 12. Bb2 {[%clk 0:02:10]}  Be7 {[%clk 0:02:25]} 13. Qh3 {[%clk 0:02:00]}  O-O {[%clk 0:02:21]} 14. Bd3 {[%clk 0:01:59]}  f5 {[%clk 0:02:20]} 15. Qe3 {[%clk 0:01:54]}  Bg5 {[%clk 0:01:34]} 16. f4 {[%clk 0:01:33]}  Bf6 {[%clk 0:01:33]} 17. Rab1 {[%clk 0:01:32]}  Rd8 {[%clk 0:01:07]} 18. Nf3 {[%clk 0:01:31]}  Bxb2 {[%clk 0:00:54]} 19. Rxb2 {[%clk 0:01:32]}  Nd7 {[%clk 0:00:53]} 20. Bc4 {[%clk 0:01:15]}  Nb6 {[%clk 0:00:43]} 21. Rbb1 {[%clk 0:01:09]}  Nd5 {[%clk 0:00:41]} 22. Bxd5 {[%clk 0:01:06]}  exd5 {[%clk 0:00:31]} 23. Rbe1 {[%clk 0:01:00]}  Bd7 {[%clk 0:00:31]} 24. d4 {[%clk 0:00:51]}  Re8 {[%clk 0:00:29]} 25. Ne5 {[%clk 0:00:51]}  Qd6 {[%clk 0:00:25]} 26. Qc3 {[%clk 0:00:51]}  Re7 {[%clk 0:00:23]} 27. Rc1 {[%clk 0:00:47]}  a5 {[%clk 0:00:16]} 28. Rf3 {[%clk 0:00:46]}  h6 {[%clk 0:00:10]} 29. Rg3 {[%clk 0:00:45]}  Kh7 {[%clk 0:00:10]} 30. Qf3 {[%clk 0:00:37]}  Qa3 {[%clk 0:00:09]} 31. Rc2 {[%clk 0:00:35]}  Qb4 {[%clk 0:00:08]} 32. Qf2 {[%clk 0:00:27]}  a4 {[%clk 0:00:07]} 33. Re2 {[%clk 0:00:26]}  axb3 {[%clk 0:00:07]} 34. Rxb3 {[%clk 0:00:26]}  Qa4 {[%clk 0:00:05]} 35. Rxb7 {[%clk 0:00:24]}  Qd1+ {[%clk 0:00:04]} 36. Re1 {[%clk 0:00:23]}  Qh5 {[%clk 0:00:02]} 37. Rxd7 {[%clk 0:00:21]}  Rae8 {[%clk 0:00:01]} 38. Rxe7 {[%clk 0:00:20]}  Rxe7 {[%clk 0:00:02]} 39. Nxc6 {[%clk 0:00:18]}  Rxe1+ {[%clk 0:00:02]} 40. Qxe1 {[%clk 0:00:19]}  Qg6 {[%clk 0:00:02]} 41. Ne5 {[%clk 0:00:19]}  Qb6 {[%clk 0:00:02]} 42. Nf3 {[%clk 0:00:16]}  Qd6 {[%clk 0:00:02]} 43. g3 {[%clk 0:00:16]}  Qa3 {[%clk 0:00:01]} 44. Qf2 {[%clk 0:00:17]}  Qc1+ {[%clk 0:00:01]} 45. Kg2 {[%clk 0:00:18]}  Qc4 {[%clk 0:00:01]} 46. a3 {[%clk 0:00:18]}  Qb3 {[%clk 0:00:01]} 47. Ne5 {[%clk 0:00:19]}  Qxa3 {[%clk 0:00:01]} 48. h3 {[%clk 0:00:17]}  Qc3 {[%clk 0:00:01]} 49. h4 {[%clk 0:00:17]}  h5 {[%clk 0:00:00]} 50. Qf3 {[%clk 0:00:17]} 1-0


[Site "https://www.chess.com"]

[Event "Titled Tuesday Blitz October 31 Early 2023"]
[White "Mindhunter08"]
[Black "Souza, Gustavo Horokoski De"]
[BlackFideId "2146584"]
[WhiteElo "2449"]
[BlackElo "2126"]
[Result "0-1"]
[Round "2"]
[TimeControl "180+1"]
[Date "2023.10.31"]
[WhiteClock "0:00:02"]
[BlackClock "0:00:02"]
[Board "183"]

1. e4 {[%clk 0:03:00]}  e6 {[%clk 0:02:59]} 2. d4 {[%clk 0:01:50]}  d5 {[%clk 0:02:56]} 3. Nc3 {[%clk 0:01:49]}  Nf6 {[%clk 0:02:56]} 4. e5 {[%clk 0:01:49]}  Nfd7 {[%clk 0:02:56]} 5. f4 {[%clk 0:01:50]}  c5 {[%clk 0:02:56]} 6. Nf3 {[%clk 0:01:51]}  Nc6 {[%clk 0:02:56]} 7. Be3 {[%clk 0:01:46]}  a6 {[%clk 0:02:55]} 8. Qd2 {[%clk 0:01:46]}  b5 {[%clk 0:02:53]} 9. dxc5 {[%clk 0:01:44]}  Bxc5 {[%clk 0:02:53]} 10. Bd3 {[%clk 0:01:45]}  Qb6 {[%clk 0:02:52]} 11. Bf2 {[%clk 0:01:45]}  h6 {[%clk 0:02:46]} 12. O-O {[%clk 0:01:35]}  O-O {[%clk 0:02:44]} 13. Qe2 {[%clk 0:01:33]}  f6 {[%clk 0:02:38]} 14. exf6 {[%clk 0:01:27]}  Nxf6 {[%clk 0:02:38]} 15. g3 {[%clk 0:01:07]}  Bd7 {[%clk 0:02:20]} 16. Bxc5 {[%clk 0:01:02]}  Qxc5+ {[%clk 0:02:19]} 17. Qf2 {[%clk 0:01:03]}  Qd6 {[%clk 0:02:14]} 18. Rfe1 {[%clk 0:00:43]}  Nb4 {[%clk 0:02:05]} 19. Ne5 {[%clk 0:00:40]}  Nxd3 {[%clk 0:02:03]} 20. cxd3 {[%clk 0:00:38]}  Be8 {[%clk 0:01:52]} 21. Qd4 {[%clk 0:00:34]}  Bh5 {[%clk 0:01:48]} 22. a3 {[%clk 0:00:24]}  Ng4 {[%clk 0:01:48]} 23. Rac1 {[%clk 0:00:23]}  Rac8 {[%clk 0:01:38]} 24. h3 {[%clk 0:00:19]}  Nxe5 {[%clk 0:01:35]} 25. Rxe5 {[%clk 0:00:20]}  Bf7 {[%clk 0:01:30]} 26. Rce1 {[%clk 0:00:20]}  Rc7 {[%clk 0:01:26]} 27. R5e2 {[%clk 0:00:18]}  Rfc8 {[%clk 0:01:13]} 28. h4 {[%clk 0:00:18]}  Qc6 {[%clk 0:00:57]} 29. Re5 {[%clk 0:00:15]}  a5 {[%clk 0:00:47]} 30. f5 {[%clk 0:00:12]}  exf5 {[%clk 0:00:45]} 31. Rxf5 {[%clk 0:00:13]}  b4 {[%clk 0:00:44]} 32. axb4 {[%clk 0:00:12]}  axb4 {[%clk 0:00:44]} 33. Qxb4 {[%clk 0:00:12]}  Rb7 {[%clk 0:00:31]} 34. Qf4 {[%clk 0:00:10]}  Bg6 {[%clk 0:00:26]} 35. Rxd5 {[%clk 0:00:09]}  Rxb2 {[%clk 0:00:21]} 36. Rc1 {[%clk 0:00:09]}  Qb6+ {[%clk 0:00:17]} 37. Qd4 {[%clk 0:00:08]}  Qxd4+ {[%clk 0:00:12]} 38. Rxd4 {[%clk 0:00:09]}  Rb3 {[%clk 0:00:12]} 39. Rc4 {[%clk 0:00:08]}  Rf8 {[%clk 0:00:08]} 40. d4 {[%clk 0:00:05]}  Rb2 {[%clk 0:00:07]} 41. Nd5 {[%clk 0:00:05]}  Rff2 {[%clk 0:00:07]} 42. Nf4 {[%clk 0:00:05]}  Be4 {[%clk 0:00:05]} 43. Rc8+ {[%clk 0:00:03]}  Kh7 {[%clk 0:00:04]} 44. R8c7 {[%clk 0:00:02]}  Rh2 {[%clk 0:00:04]} 45. Ng2 {[%clk 0:00:02]}  Rbxg2+ {[%clk 0:00:03]} 46. Kf1 {[%clk 0:00:02]}  Rh1# {[%clk 0:00:02]} 0-1


[Site "https://www.chess.com"]

[Event "Titled Tuesday Blitz October 31 Early 2023"]
[White "Baruch, Liam"]
[Black "Liu, Casper"]
[WhiteFideId "14322064"]
[BlackFideId "1454153"]
[WhiteElo "2112"]
[BlackElo "2445"]
[Result "0-1"]
[Round "2"]
[TimeControl "180+1"]
[Date "2023.10.31"]
[WhiteClock "0:00:46"]
[BlackClock "0:00:13"]
[Board "186"]

1. e4 {[%clk 0:03:00]}  c5 {[%clk 0:02:55]} 2. Nf3 {[%clk 0:03:00]}  d6 {[%clk 0:02:52]} 3. d4 {[%clk 0:03:00]}  Nf6 {[%clk 0:02:52]} 4. dxc5 {[%clk 0:02:52]}  Nxe4 {[%clk 0:02:52]} 5. cxd6 {[%clk 0:02:49]}  Qxd6 {[%clk 0:02:53]} 6. Qxd6 {[%clk 0:02:48]}  Nxd6 {[%clk 0:02:52]} 7. Nc3 {[%clk 0:02:48]}  g6 {[%clk 0:02:52]} 8. Nd5 {[%clk 0:02:40]}  Kd8 {[%clk 0:02:43]} 9. c4 {[%clk 0:02:33]}  Be6 {[%clk 0:02:39]} 10. Bg5 {[%clk 0:02:25]}  Nc6 {[%clk 0:02:34]} 11. O-O-O {[%clk 0:02:22]}  Rc8 {[%clk 0:02:24]} 12. Nxe7 {[%clk 0:02:14]}  Nxe7 {[%clk 0:01:51]} 13. Rxd6+ {[%clk 0:02:13]}  Ke8 {[%clk 0:01:52]} 14. Bf6 {[%clk 0:02:01]}  Rg8 {[%clk 0:01:41]} 15. b3 {[%clk 0:02:01]}  Nd5 {[%clk 0:01:35]} 16. Rxd5 {[%clk 0:01:43]}  Bxd5 {[%clk 0:01:34]} 17. Bd3 {[%clk 0:01:44]}  Bg7 {[%clk 0:01:14]} 18. Re1+ {[%clk 0:01:41]}  Be6 {[%clk 0:01:07]} 19. Bh4 {[%clk 0:01:26]}  b5 {[%clk 0:00:44]} 20. Kb1 {[%clk 0:01:26]}  Bc3 {[%clk 0:00:22]} 21. Re2 {[%clk 0:01:22]}  bxc4 {[%clk 0:00:17]} 22. Bxc4 {[%clk 0:01:23]}  Kd7 {[%clk 0:00:16]} 23. Bb5+ {[%clk 0:01:20]}  Kc7 {[%clk 0:00:16]} 24. Bg3+ {[%clk 0:01:20]}  Kb6 {[%clk 0:00:16]} 25. Bd3 {[%clk 0:01:17]}  Rgd8 {[%clk 0:00:16]} 26. Bc2 {[%clk 0:01:07]}  Bf6 {[%clk 0:00:13]} 27. Bf4 {[%clk 0:00:57]}  Bf5 {[%clk 0:00:13]} 28. Be3+ {[%clk 0:00:55]}  Kb7 {[%clk 0:00:12]} 29. Bxf5 {[%clk 0:00:52]}  Rd1+ {[%clk 0:00:12]} 30. Bc1 {[%clk 0:00:46]}  Rcxc1# {[%clk 0:00:13]} 0-1


[Site "https://www.chess.com"]

[Event "Titled Tuesday Blitz October 31 Early 2023"]
[White "MMAHDI2013"]
[Black "Lorenzo De La Riva, Lazaro"]
[BlackFideId "2268809"]
[WhiteElo "2445"]
[BlackElo "2104"]
[Result "1-0"]
[Round "2"]
[TimeControl "180+1"]
[Date "2023.10.31"]
[WhiteClock "0:00:10"]
[BlackClock "0:00:00"]
[Board "188"]

1. c4 {[%clk 0:03:00]}  e5 {[%clk 0:02:59]} 2. Nc3 {[%clk 0:02:59]}  Nf6 {[%clk 0:02:56]} 3. Nf3 {[%clk 0:02:59]}  e4 {[%clk 0:02:53]} 4. Ng5 {[%clk 0:02:58]}  c6 {[%clk 0:02:53]} 5. Qa4 {[%clk 0:02:55]}  Qe7 {[%clk 0:02:37]} 6. Qc2 {[%clk 0:02:30]}  d5 {[%clk 0:02:11]} 7. cxd5 {[%clk 0:02:25]}  Bf5 {[%clk 0:02:11]} 8. d6 {[%clk 0:02:22]}  Qe5 {[%clk 0:01:48]} 9. Qb3 {[%clk 0:02:06]}  Nbd7 {[%clk 0:00:59]} 10. Nxf7 {[%clk 0:01:59]}  Qc5 {[%clk 0:00:43]} 11. Nxh8 {[%clk 0:01:56]}  O-O-O {[%clk 0:00:43]} 12. Na4 {[%clk 0:01:43]}  Qa5 {[%clk 0:00:34]} 13. Nc3 {[%clk 0:01:26]}  Nc5 {[%clk 0:00:27]} 14. Qa3 {[%clk 0:01:20]}  Qb6 {[%clk 0:00:22]} 15. Na4 {[%clk 0:01:03]}  Nxa4 {[%clk 0:00:21]} 16. Qxa4 {[%clk 0:01:04]}  Bxd6 {[%clk 0:00:15]} 17. Nf7 {[%clk 0:01:03]}  Bc5 {[%clk 0:00:14]} 18. Nxd8 {[%clk 0:00:59]}  Bxf2+ {[%clk 0:00:15]} 19. Kd1 {[%clk 0:01:00]}  Nd5 {[%clk 0:00:11]} 20. Qb3 {[%clk 0:00:59]}  Qxd8 {[%clk 0:00:10]} 21. Kc2 {[%clk 0:00:45]}  e3+ {[%clk 0:00:08]} 22. d3 {[%clk 0:00:45]}  a5 {[%clk 0:00:04]} 23. a3 {[%clk 0:00:40]}  Qd6 {[%clk 0:00:04]} 24. Qc4 {[%clk 0:00:35]}  Be6 {[%clk 0:00:04]} 25. Qa4 {[%clk 0:00:19]}  Qc5+ {[%clk 0:00:01]} 26. Kb1 {[%clk 0:00:19]}  Qb6 {[%clk 0:00:01]} 27. Qc2 {[%clk 0:00:17]}  a4 {[%clk 0:00:01]} 28. Ra2 {[%clk 0:00:14]}  Kb8 {[%clk 0:00:01]} 29. Ka1 {[%clk 0:00:14]}  Nc7 {[%clk 0:00:01]} 30. g3 {[%clk 0:00:15]}  Na6 {[%clk 0:00:02]} 31. Bg2 {[%clk 0:00:14]}  Bxa2 {[%clk 0:00:03]} 32. Kxa2 {[%clk 0:00:15]}  Qb5 {[%clk 0:00:03]} 33. Qc4 {[%clk 0:00:15]}  Qb6 {[%clk 0:00:03]} 34. Qxa4 {[%clk 0:00:14]}  Nc5 {[%clk 0:00:03]} 35. Qb4 {[%clk 0:00:15]}  Qa7 {[%clk 0:00:03]} 36. d4 {[%clk 0:00:14]}  Nd7 {[%clk 0:00:03]} 37. Bxc6 {[%clk 0:00:14]}  Nb6 {[%clk 0:00:03]} 38. Bg2 {[%clk 0:00:13]}  Qa6 {[%clk 0:00:02]} 39. Qf8+ {[%clk 0:00:13]}  Ka7 {[%clk 0:00:02]} 40. Qb4 {[%clk 0:00:13]}  Qxe2 {[%clk 0:00:02]} 41. Bxe3 {[%clk 0:00:09]}  Bxe3 {[%clk 0:00:01]} 42. Bh3 {[%clk 0:00:08]}  Qc4+ {[%clk 0:00:01]} 43. Qxc4 {[%clk 0:00:08]}  Nxc4 {[%clk 0:00:02]} 44. Be6 {[%clk 0:00:09]}  Nd6 {[%clk 0:00:02]} 45. d5 {[%clk 0:00:09]}  Nb5 {[%clk 0:00:03]} 46. Rf1 {[%clk 0:00:09]}  Bc5 {[%clk 0:00:03]} 47. Rf7 {[%clk 0:00:09]}  Bd4 {[%clk 0:00:02]} 48. Bf5 {[%clk 0:00:10]}  Nd6 {[%clk 0:00:02]} 49. Rf8 {[%clk 0:00:10]}  Nxf5 {[%clk 0:00:02]} 50. Rxf5 {[%clk 0:00:10]}  Bf6 {[%clk 0:00:03]} 51. g4 {[%clk 0:00:10]}  h6 {[%clk 0:00:03]} 52. h4 {[%clk 0:00:09]}  Bxh4 {[%clk 0:00:04]} 53. d6 {[%clk 0:00:09]}  Kb6 {[%clk 0:00:03]} 54. Rf7 {[%clk 0:00:09]}  Bf6 {[%clk 0:00:03]} 55. d7 {[%clk 0:00:10]}  Kc7 {[%clk 0:00:04]} 56. Kb3 {[%clk 0:00:10]}  b5 {[%clk 0:00:04]} 57. a4 {[%clk 0:00:10]}  bxa4+ {[%clk 0:00:04]} 58. Kxa4 {[%clk 0:00:11]}  Be5 {[%clk 0:00:02]} 59. b4 {[%clk 0:00:10]}  Bd4 {[%clk 0:00:02]} 60. b5 {[%clk 0:00:10]}  g5 {[%clk 0:00:00]} 61. Kb4 {[%clk 0:00:10]} 1-0


[Site "https://www.chess.com"]

[Event "Titled Tuesday Blitz October 31 Early 2023"]
[White "Rios Escobar, Adan"]
[Black "Levine, David"]
[WhiteFideId "3403645"]
[BlackFideId "2011611"]
[WhiteElo "2444"]
[BlackElo "2061"]
[Result "1-0"]
[Round "2"]
[TimeControl "180+1"]
[Date "2023.10.31"]
[WhiteClock "0:00:25"]
[BlackClock "0:00:12"]
[Board "189"]

1. d4 {[%clk 0:02:55]}  d5 {[%clk 0:02:59]} 2. g3 {[%clk 0:02:55]}  Nf6 {[%clk 0:02:58]} 3. Nf3 {[%clk 0:02:52]}  e6 {[%clk 0:02:55]} 4. c4 {[%clk 0:02:52]}  Be7 {[%clk 0:02:54]} 5. Bg2 {[%clk 0:02:53]}  O-O {[%clk 0:02:54]} 6. O-O {[%clk 0:02:54]}  dxc4 {[%clk 0:02:54]} 7. Qc2 {[%clk 0:02:45]}  b5 {[%clk 0:02:47]} 8. a4 {[%clk 0:02:44]}  Bb7 {[%clk 0:02:44]} 9. axb5 {[%clk 0:02:42]}  a6 {[%clk 0:02:44]} 10. bxa6 {[%clk 0:02:43]}  Nxa6 {[%clk 0:02:42]} 11. Qxc4 {[%clk 0:02:40]}  Bd5 {[%clk 0:02:41]} 12. Qc3 {[%clk 0:02:37]}  c5 {[%clk 0:02:30]} 13. Qe1 {[%clk 0:01:55]}  Nb4 {[%clk 0:02:23]} 14. Rxa8 {[%clk 0:01:52]}  Qxa8 {[%clk 0:02:22]} 15. Nc3 {[%clk 0:01:45]}  Bb7 {[%clk 0:02:01]} 16. dxc5 {[%clk 0:01:35]}  Bxc5 {[%clk 0:01:57]} 17. Bg5 {[%clk 0:01:35]}  Nbd5 {[%clk 0:01:23]} 18. Qb1 {[%clk 0:01:19]}  Rb8 {[%clk 0:01:14]} 19. Nxd5 {[%clk 0:01:11]}  Bxd5 {[%clk 0:01:09]} 20. Qc2 {[%clk 0:01:01]}  Rc8 {[%clk 0:01:01]} 21. Qb1 {[%clk 0:00:59]}  Rb8 {[%clk 0:01:00]} 22. Bf4 {[%clk 0:00:59]}  Be4 {[%clk 0:00:52]} 23. Qc1 {[%clk 0:00:54]}  Rc8 {[%clk 0:00:51]} 24. Qd2 {[%clk 0:00:52]}  Nd5 {[%clk 0:00:48]} 25. Be5 {[%clk 0:00:49]}  f6 {[%clk 0:00:41]} 26. Bd4 {[%clk 0:00:41]}  Bf8 {[%clk 0:00:40]} 27. h4 {[%clk 0:00:39]}  e5 {[%clk 0:00:40]} 28. Bc3 {[%clk 0:00:37]}  Nxc3 {[%clk 0:00:39]} 29. bxc3 {[%clk 0:00:38]}  Qc6 {[%clk 0:00:35]} 30. Rc1 {[%clk 0:00:32]}  Ba3 {[%clk 0:00:33]} 31. Qa2+ {[%clk 0:00:26]}  Bd5 {[%clk 0:00:21]} 32. Qxa3 {[%clk 0:00:25]}  e4 {[%clk 0:00:12]} 33. Nd4 {[%clk 0:00:25]} 1-0


[Site "https://www.chess.com"]